Workbook

Sheet Sheet1
C3: 314 Angell Street
C5: REVENUE - Market Rent Assumptions | I5: Current | K5: Market
C6: 314 Angell | E6: Unit # | F6: # of BR | G6: Future Use, # of Beds | H6: Square Footage | I6: Monthly | J6: Annual | K6: Monthly | L6: Annual
E7: 1 | F7: 1 | G7: Add Door to be 2 Bed | H7: 880 | I7: 2150 | J7: =I7*12 -> 25800 | K7: 2500 | L7: =K7*12 -> 30000 | N7: 2025-05-31
E8: 2 | F8: 1 | G8: 1 Bed | H8: 700 | I8: 2150 | J8: 25800 | K8: 2500 | L8: 30000 | N8: 2025-05-31
E9: 3 | F9: 1 | G9: 1 bed | H9: 470 | I9: 1675 | J9: 20100 | K9: 2200 | L9: 26400 | N9: 2025-05-31
E10: 4 | F10: 1 | G10: 1 Bed | H10: 710 | I10: 2100 | J10: 25200 | K10: 2500 | L10: 30000 | N10: 2025-05-31
E11: 5 | F11: 1 | G11: 1 Bed | H11: 700 | I11: 2100 | J11: 25200 | K11: 2500 | L11: 30000 | N11: 2025-05-31
E12: 6 | F12: 1 | G12: 1 Bed with deck | H12: 815 | I12: 2250 | J12: 27000 | K12: 2500 | L12: 30000 | N12: 2025-06-30
E13: 7 | F13: 1 | G13: 1 Bed | H13: 920 | I13: 2300 | J13: 27600 | K13: 2500 | L13: 30000 | N13: 2025-07-31
E14: 8 | F14: 1 | G14: 2 Bed | H14: 810 | I14: 2050 | J14: 24600 | K14: 2500 | L14: 30000 | N14: 2025-05-31
E15: 9 | F15: 2 | G15: 2-3 Bed | H15: 1050 | I15: 1600 | J15: 19200 | K15: 2800 | L15: 33600 | O15: Being Renovated
E16: Additional Dwelling Unit to be Built at Site of Garage | G16: 2-Bed
E17: Parking | F17: 14 Spaces | G17: 14 Spaces | I17: 0 | J17: 0 | K17: 2200 | L17: 26400 | O17: $150/ parking spot
C18: ="Total "&C6 -> Total 314 Angell | E18: =COUNT(E7:E15) -> 9 | F18: 17 | I18: =SUM(I7:I17) -> 18375 | J18: =SUM(J7:J17) -> 220500 | K18: =SUM(K7:K17) -> 24700 | L18: =SUM(L7:L17) -> 296400
C21: =C6 -> 314 Angell | I21: Monthly | J21: Annual | K21: Monthly | L21: Annual
C22: National Grid - House Electric | I22: 1240 | J22: =I22*12 -> 14880 | K22: 2000 | L22: =K22*12 -> 24000 | O22: landlord pays utilities for all units except unit 9
C23: Maintenance 3% | I23: =I18*0.03 -> 551.25 | J23: 6615 | K23: 699 | L23: =K23*12 -> 8388
C24: Taxes | I24: 3566 | J24: 42792 | K24: 3566 | L24: =K24*12 -> 42792 | O24: assumes $1.3m valuation
C25: Insurance | I25: 400 | J25: 4800 | K25: 230 | L25: =K25*12 -> 2760
C26: Trash | I26: 250 | J26: 3000 | K26: =I26*1.025 -> 256.25 | L26: 3075
C27: Water and Sewer | I27: 500 | J27: 6000 | K27: 500 | L27: =K27*12 -> 6000
C28: Vacancy (2%) | I28: =0.02*I18 -> 367.5 | J28: 4410 | K28: 466 | L28: =12*K28 -> 5592
C29: ="Total "&C21 -> Total 314 Angell | I29: =SUM(I22:I27) -> 6507.25 | J29: =SUM(J22:J28) -> 82497 | K29: 7717.25 | L29: 92607
C32: NET OPERATING INCOME | I32: =I18-I29 -> 11867.75 | J32: 138003 | K32: 16982.75 | L32: 203793
C34: Price Analysis | J34: =J32/J35 -> 2760060 | L34: =L32/L35 -> 3159581.395
C35: Cap Rate | J35: 0.05 | L35: 0.0645
